[Event "FIDE WSTC Open 50 2025"]
[Site "Prague"]
[Date "2025.02.18"]
[Round "2.16"]
[White "D'Amore, Carlo"]
[Black "Berg, Anders Hoyer"]
[Result "1-0"]
[Annotator "ChessBase"]
[ECO "A06"]
[WhiteElo "2362"]
[BlackElo "2073"]
[PlyCount "81"]
[EventDate "2025.02.17"]
[EventType "team-tourn"]
[EventCountry "CZE"]
[SourceTitle "playchess.com"]
[Source "ChessBase"]
[SourceQuality "1"]
[TimeControl "40/5400+30:1800+30"]

1. Nf3 {[%emt 0:00:45]} d5 {[%emt 0:00:16]} 2. g3 {[%emt 0:01:53]} Nf6 {[%emt 0:00:41]} 3. Bg2 {[%emt 0:00:06]} c6 {[%emt 0:00:59]} 4. b3 {[%emt 0:03:32]} Bg4 {[%emt 0:01:48]} 5. Bb2 {[%emt 0:00:20]} Nbd7 {[%emt 0:01:33]} 6. c4 {[%emt 0:06:43]} e6 {[%emt 0:01:46]} 7. O-O {[%emt 0:00:47]} Bd6 {[%emt 0:05:38]} 8. d3 {[%emt 0:01:55]} O-O {[%emt 0:01:19]} 9. Nbd2 {[%emt 0:00:13]} a5 {[%emt 0:10:17]} 10. a3 {[%emt 0:00:21]} Qe7 {[%emt 0:03:24]} 11. h3 {[%emt 0:00:24]} Bh5 {[%emt 0:08:04]} 12. cxd5 {[%emt 0:10:35]} cxd5 {[%emt 0:05:03]} 13. Nd4 {[%emt 0:01:44]} a4 {[%emt 0:24:06]} 14. b4 {[%emt 0:04:29]} Rfc8 {[%emt 0:06:22]} 15. Rc1 {[%emt 0:15:08]} Rxc1 {[%emt 0:00:43]} 16. Qxc1 {[%emt 0:00:09]} Qd8 {[%emt 0:01:15]} 17. Qa1 {[%emt 0:03:23]} Qb6 {[%emt 0:07:16]} 18. g4 {[%emt 0:08:17]} Bg6 {[%emt 0:00:16]} 19. N4f3 {[%emt 0:01:31]} h6 {[%emt 0:01:27]} 20. Rc1 {[%emt 0:01:35]} Qd8 {[%emt 0:00:36]} 21. Ne5 {[%emt 0:02:54]} Nxe5 {[%emt 0:01:00]} 22. Bxe5 {[%emt 0:00:04]} Bxe5 {[%emt 0:00:34]} 23. Qxe5 {[%emt 0:00:05]} Rc8 {[%emt 0:00:42]} 24. Qa1 {[%emt 0:02:43]} Ne8 {[%emt 0:02:39]} 25. Nf3 {[%emt 0:03:21]} Rxc1+ {[%emt 0:01:39]} 26. Qxc1 {[%emt 0:00:12]} Qc7 {[%emt 0:01:07]} 27. Qd1 {[%emt 0:02:15]} b5 {[%emt 0:00:29]} 28. Nd4 {[%emt 0:00:55]} Nd6 {[%emt 0:00:29]} 29. Qd2 {[%emt 0:01:21]} Kf8 {[%emt 0:05:24]} 30. f4 {[%emt 0:01:58]} Ke7 {[%emt 0:06:10]} 31. Qe3 {[%emt 0:03:44]} Kf8 {[%emt 0:01:25]} 32. Kf2 {[%emt 0:02:02]} Qc3 {[%emt 0:01:07]} 33. Qe5 {[%emt 0:01:21]} Qc7 {[%emt 0:00:28]} 34. Qxe6 {[%emt 0:10:06]} Ne4+ {[%emt 0:00:37]} 35. Bxe4 {[%emt 0:02:49]} Qxf4+ {[%emt 0:00:27]} 36. Kg2 {[%emt 0:00:22]} dxe4 {[%emt 0:00:51]} 37. Qc8+ {[%emt 0:02:00]} Ke7 {[%emt 0:00:01]} 38. Nc6+ {[%emt 0:00:10]} Kf6 {[%emt 0:00:24]} 39. Qd8+ {[%emt 0:00:19]} Ke6 {[%emt 0:00:10]} 40. Nd4+ {[%emt 0:00:50]} Ke5 {[%emt 0:00:39]} 41. Qc7+ {[%emt 0:30:15]} 1-0

[Event "FIDE WSTC Open 50 2025"]
[Site "Prague"]
[Date "2025.02.18"]
[Round "2.17"]
[White "Kazhgaleyev, Murtas"]
[Black "Plotkin, Victor"]
[Result "1-0"]
[Annotator "ChessBase"]
[ECO "A05"]
[WhiteElo "2495"]
[BlackElo "2259"]
[PlyCount "115"]
[EventDate "2025.02.17"]
[EventType "team-tourn"]
[EventCountry "CZE"]
[SourceTitle "playchess.com"]
[Source "ChessBase"]
[SourceQuality "1"]
[TimeControl "40/5400+30:1800+30"]

1. Nf3 {[%emt 0:00:03]} Nf6 {[%emt 0:00:09]} 2. g3 {[%emt 0:03:29]} d5 {[%emt 0:00:40]} 3. Bg2 {[%emt 0:00:06]} c6 {[%emt 0:01:14]} 4. O-O {[%emt 0:00:49]} g6 {[%emt 0:00:36]} 5. b3 {[%emt 0:03:15]} Bg7 {[%emt 0:00:16]} 6. Bb2 {[%emt 0:00:05]} O-O {[%emt 0:00:14]} 7. c4 {[%emt 0:00:09]} Bg4 {[%emt 0:06:42]} 8. d3 {[%emt 0:01:31]} Re8 {[%emt 0:11:22]} 9. Nbd2 {[%emt 0:01:07]} Na6 {[%emt 0:05:28]} 10. h3 {[%emt 0:00:37]} Bxf3 {[%emt 0:01:04]} 11. Nxf3 {[%emt 0:02:14]} Qd6 {[%emt 0:02:25]} 12. a3 {[%emt 0:08:31]} e5 {[%emt 0:04:05]} 13. cxd5 {[%emt 0:01:30]} cxd5 {[%emt 0:02:20]} 14. b4 {[%emt 0:00:32]} Rac8 {[%emt 0:02:02]} 15. Qb3 {[%emt 0:02:17]} e4 {[%emt 0:07:39]} 16. dxe4 {[%emt 0:06:18]} Nxe4 {[%emt 0:00:44]} 17. Bxg7 {[%emt 0:01:39]} Kxg7 {[%emt 0:00:14]} 18. Rac1 {[%emt 0:01:36]} Kg8 {[%emt 0:05:16]} 19. e3 {[%emt 0:03:51]} Nc7 {[%emt 0:07:29]} 20. Qd3 {[%emt 0:07:48]} Rcd8 {[%emt 0:05:59]} 21. Nd2 {[%emt 0:07:28]} Nxd2 {[%emt 0:01:20]} 22. Qxd2 {[%emt 0:01:37]} Re7 {[%emt 0:02:45]} 23. Rfd1 {[%emt 0:01:55]} Red7 {[%emt 0:01:28]} 24. Qb2 {[%emt 0:04:56]} Qe7 {[%emt 0:02:36]} 25. Rd3 {[%emt 0:01:22]} Ne6 {[%emt 0:03:24]} 26. h4 {[%emt 0:09:47]} d4 {[%emt 0:01:24]} 27. Re1 {[%emt 0:02:19]} dxe3 {[%emt 0:00:59]} 28. Rdxe3 {[%emt 0:00:11]} Qf8 {[%emt 0:05:05]} 29. Bh3 {[%emt 0:07:43]} Rd2 {[%emt 0:01:30]} 30. Qf6 {[%emt 0:04:00]} Nc7 {[%emt 0:05:34]} 31. Bg2 {[%emt 0:00:45]} Nd5 {[%emt 0:05:41]} 32. Bxd5 {[%emt 0:04:19]} R2xd5 {[%emt 0:00:12]} 33. Re7 {[%emt 0:00:16]} R5d7 {[%emt 0:01:42]} 34. h5 {[%emt 0:01:31]} Rxe7 {[%emt 0:03:34]} 35. Rxe7 {[%emt 0:00:09]} Rb8 {[%emt 0:02:45]} 36. h6 {[%emt 0:01:34]} a6 {[%emt 0:00:58]} 37. Qf4 {[%emt 0:04:09]} Qxe7 {[%emt 0:01:10]} 38. Qxb8+ {[%emt 0:00:21]} Qf8 {[%emt 0:00:02]} 39. Qxb7 {[%emt 0:00:17]} Qxh6 {[%emt 0:00:11]} 40. Qxa6 {[%emt 0:00:19]} Qc1+ {[%emt 0:00:13]} 41. Kg2 {[%emt 0:30:07]} h5 {[%emt 0:30:23]} 42. Qd3 {[%emt 0:02:08]} Qc6+ {[%emt 0:00:00]} 43. Kh2 {[%emt 0:00:00]} Qf6 {[%emt 0:00:00]} 44. Kg2 {[%emt 0:00:00]} Qc6+ {[%emt 0:00:00]} 45. Kg1 {[%emt 0:00:00]} Qc1+ {[%emt 0:00:00]} 46. Kh2 {[%emt 0:00:00]} f5 {[%emt 0:00:00]} 47. b5 {[%emt 0:00:00]} Qc5 {[%emt 0:00:00]} 48. Kg2 {[%emt 0:00:00]} Kh7 {[%emt 0:00:00]} 49. Qb3 {[%emt 0:00:00]} Qb6 {[%emt 0:00:00]} 50. Qf7+ {[%emt 0:00:00]} Kh6 {[%emt 0:00:00]} 51. Qf8+ {[%emt 0:00:00]} Kh7 {[%emt 0:00:00]} 52. Qe7+ {[%emt 0:00:00]} Kg8 {[%emt 0:00:00]} 53. a4 {[%emt 0:00:00]} Qd4 {[%emt 0:00:00]} 54. Qe6+ {[%emt 0:00:00]} Kg7 {[%emt 0:00:00]} 55. b6 {[%emt 0:00:00]} Qxa4 {[%emt 0:00:00]} 56. Qe5+ {[%emt 0:00:00]} Kh7 {[%emt 0:00:00]} 57. Qc7+ {[%emt 0:00:00]} Kg8 {[%emt 0:00:00]} 58. b7 {[%emt 0:00:00]} 1-0

[Event "FIDE WSTC Open 50 2025"]
[Site "Prague"]
[Date "2025.02.18"]
[Round "2.18"]
[White "Cummings, David H."]
[Black "Temirbayev, Serikbay"]
[Result "0-1"]
[Annotator "ChessBase"]
[ECO "A16"]
[WhiteElo "2255"]
[BlackElo "2372"]
[PlyCount "92"]
[EventDate "2025.02.17"]
[EventType "team-tourn"]
[EventCountry "CZE"]
[SourceTitle "playchess.com"]
[Source "ChessBase"]
[SourceQuality "1"]
[TimeControl "40/5400+30:1800+30"]

1. c4 {[%emt 0:00:10]} Nf6 {[%emt 0:00:17]} 2. Nc3 {[%emt 0:00:14]} g6 {[%emt 0:00:33]} 3. Nf3 {[%emt 0:00:33]} Bg7 {[%emt 0:00:22]} 4. e4 {[%emt 0:00:16]} d6 {[%emt 0:00:15]} 5. d4 {[%emt 0:00:06]} O-O {[%emt 0:00:22]} 6. Bd3 {[%emt 0:00:26]} e5 {[%emt 0:05:11]} 7. d5 {[%emt 0:00:22]} a5 {[%emt 0:01:37]} 8. O-O {[%emt 0:00:29]} Na6 {[%emt 0:09:59]} 9. a3 {[%emt 0:01:00]} Bd7 {[%emt 0:03:39]} 10. Bc2 {[%emt 0:04:59]} Nh5 {[%emt 0:04:53]} 11. Rb1 {[%emt 0:02:23]} h6 {[%emt 0:08:54]} 12. Kh1 {[%emt 0:10:34]} Qe8 {[%emt 0:01:32]} 13. b4 {[%emt 0:07:32]} axb4 {[%emt 0:00:29]} 14. axb4 {[%emt 0:00:04]} f5 {[%emt 0:00:36]} 15. exf5 {[%emt 0:05:40]} gxf5 {[%emt 0:00:22]} 16. Re1 {[%emt 0:20:31]} Nf6 {[%emt 0:02:40]} 17. h3 {[%emt 0:10:00]} Qh5 {[%emt 0:10:12]} 18. Nh2 {[%emt 0:09:18]} Qh4 {[%emt 0:04:18]} 19. Qe2 {[%emt 0:01:10]} e4 {[%emt 0:00:20]} 20. Bd2 {[%emt 0:03:00]} Rae8 {[%emt 0:01:03]} 21. Qf1 {[%emt 0:00:44]} Nh7 {[%emt 0:03:38]} 22. g3 {[%emt 0:02:39]} Qf6 {[%emt 0:09:38]} 23. Ne2 {[%emt 0:00:45]} Ng5 {[%emt 0:00:53]} 24. Nf4 {[%emt 0:04:49]} Bh8 {[%emt 0:04:36]} 25. Qe2 {[%emt 0:02:00]} Nf7 {[%emt 0:03:29]} 26. Rg1 {[%emt 0:03:57]} Ne5 {[%emt 0:03:48]} 27. Bc3 {[%emt 0:02:47]} Kf7 {[%emt 0:03:49]} 28. Bb3 {[%emt 0:01:10]} Ke7 {[%emt 0:01:39]} 29. c5 {[%emt 0:00:27]} Qf7 {[%emt 0:05:18]} 30. c6 {[%emt 0:01:29]} Bc8 {[%emt 0:00:08]} 31. Ne6 {[%emt 0:02:01]} Nd3 {[%emt 0:00:50]} 32. Bxh8 {[%emt 0:00:21]} Rxh8 {[%emt 0:00:11]} 33. cxb7 {[%emt 0:02:00]} Bxb7 {[%emt 0:00:12]} 34. Bc4 {[%emt 0:00:52]} Naxb4 {[%emt 0:00:39]} 35. Rxb4 {[%emt 0:00:38]} Nxb4 {[%emt 0:00:06]} 36. Rb1 {[%emt 0:00:18]} Bxd5 {[%emt 0:00:13]} 37. Bxd5 {[%emt 0:01:29]} Nxd5 {[%emt 0:00:04]} 38. Nd4 {[%emt 0:00:04]} Nc3 {[%emt 0:01:24]} 39. Qb2 {[%emt 0:01:24]} Nxb1 {[%emt 0:00:16]} 40. Nc6+ {[%emt 0:00:04]} Kd7 {[%emt 0:01:20]} 41. Qb5 {[%emt 0:30:44]} Ke6 {[%emt 0:37:05]} 42. Qxb1 {[%emt 0:00:00]} Kf6 {[%emt 0:00:00]} 43. Nf1 {[%emt 0:00:00]} Qc4 {[%emt 0:00:00]} 44. Qa1+ {[%emt 0:00:00]} Kg6 {[%emt 0:00:00]} 45. Nd4 {[%emt 0:00:00]} Ra8 {[%emt 0:00:00]} 46. Qd1 {[%emt 0:00:00]} Qd3 {[%emt 0:00:00]} 0-1

[Event "FIDE WSTC Open 50 2025"]
[Site "Prague"]
[Date "2025.02.18"]
[Round "2.19"]
[White "Tikzhanov, Yerlan"]
[Black "Barron, Michael"]
[Result "1-0"]
[Annotator "ChessBase"]
[ECO "C50"]
[WhiteElo "2323"]
[BlackElo "2049"]
[PlyCount "55"]
[EventDate "2025.02.17"]
[EventType "team-tourn"]
[EventCountry "CZE"]
[SourceTitle "playchess.com"]
[Source "ChessBase"]
[SourceQuality "1"]
[TimeControl "40/5400+30:1800+30"]

1. e4 {[%emt 0:00:06]} e5 {[%emt 0:00:02]} 2. Nf3 {[%emt 0:00:08]} Nc6 {[%emt 0:00:02]} 3. Bc4 {[%emt 0:00:17]} Bc5 {[%emt 0:00:02]} 4. O-O {[%emt 0:00:30]} Nf6 {[%emt 0:00:39]} 5. d3 {[%emt 0:00:15]} O-O {[%emt 0:01:32]} 6. Nbd2 {[%emt 0:01:28]} d5 {[%emt 0:04:04]} 7. exd5 {[%emt 0:00:50]} Nxd5 {[%emt 0:00:03]} 8. Re1 {[%emt 0:00:52]} f6 {[%emt 0:04:39]} 9. Ne4 {[%emt 0:03:02]} Bb6 {[%emt 0:00:33]} 10. c3 {[%emt 0:12:32]} Kh8 {[%emt 0:01:02]} 11. a4 {[%emt 0:05:48]} Bg4 {[%emt 0:05:32]} 12. h3 {[%emt 0:00:43]} Bh5 {[%emt 0:00:34]} 13. Ng3 {[%emt 0:01:22]} Bf7 {[%emt 0:03:43]} 14. Qc2 {[%emt 0:02:18]} a5 {[%emt 0:02:06]} 15. b3 {[%emt 0:07:12]} Qd7 {[%emt 0:06:13]} 16. Ba3 {[%emt 0:01:45]} Rfe8 {[%emt 0:00:24]} 17. Ne4 {[%emt 0:02:19]} Nf4 {[%emt 0:05:08]} 18. Rad1 {[%emt 0:00:16]} Bh5 {[%emt 0:01:15]} 19. Nh4 {[%emt 0:06:53]} Nxh3+ {[%emt 0:02:33]} 20. Kh2 {[%emt 0:02:22]} Qg4 {[%emt 0:00:44]} 21. f3 {[%emt 0:02:42]} Qf4+ {[%emt 0:05:45]} 22. g3 {[%emt 0:01:28]} Qh6 {[%emt 0:00:07]} 23. Kxh3 {[%emt 0:00:17]} Bxf3 {[%emt 0:00:20]} 24. Rf1 {[%emt 0:03:18]} Bxd1 {[%emt 0:12:40]} 25. Qxd1 {[%emt 0:00:14]} Ne7 {[%emt 0:01:41]} 26. Kg2 {[%emt 0:01:35]} Rad8 {[%emt 0:05:57]} 27. Bxe7 {[%emt 0:00:48]} Rxe7 {[%emt 0:04:00]} 28. Nf5 {[%emt 0:00:25]} 1-0

[Event "FIDE WSTC Open 50 2025"]
[Site "Prague"]
[Date "2025.02.18"]
[Round "2.20"]
[White "Findlay, Ian T."]
[Black "Min, Valeriy"]
[Result "0-1"]
[Annotator "ChessBase"]
[ECO "C63"]
[WhiteElo "2089"]
[BlackElo "2273"]
[PlyCount "88"]
[EventDate "2025.02.17"]
[EventType "team-tourn"]
[EventCountry "CZE"]
[SourceTitle "playchess.com"]
[Source "ChessBase"]
[SourceQuality "1"]
[TimeControl "40/5400+30:1800+30"]

1. e4 {[%emt 0:00:03]} e5 {[%emt 0:00:23]} 2. Nf3 {[%emt 0:00:08]} Nc6 {[%emt 0:00:06]} 3. Bb5 {[%emt 0:00:07]} f5 {[%emt 0:00:26]} 4. d3 {[%emt 0:00:25]} fxe4 {[%emt 0:00:22]} 5. dxe4 {[%emt 0:00:08]} Nf6 {[%emt 0:00:05]} 6. O-O {[%emt 0:00:12]} Bc5 {[%emt 0:01:41]} 7. Qe2 {[%emt 0:06:56]} d6 {[%emt 0:04:27]} 8. Qc4 {[%emt 0:11:21]} Qe7 {[%emt 0:27:32]} 9. Be3 {[%emt 0:01:11]} Bxe3 {[%emt 0:03:03]} 10. Bxc6+ {[%emt 0:00:26]} bxc6 {[%emt 0:00:05]} 11. Qxc6+ {[%emt 0:00:25]} Qd7 {[%emt 0:00:59]} 12. Qxd7+ {[%emt 0:03:22]} Bxd7 {[%emt 0:00:24]} 13. fxe3 {[%emt 0:00:07]} Nxe4 {[%emt 0:00:16]} 14. Nbd2 {[%emt 0:00:10]} Nf6 {[%emt 0:02:10]} 15. c4 {[%emt 0:03:38]} Rb8 {[%emt 0:07:22]} 16. b3 {[%emt 0:00:13]} c5 {[%emt 0:03:33]} 17. Nh4 {[%emt 0:08:02]} Ng4 {[%emt 0:18:05]} 18. Rae1 {[%emt 0:18:29]} Rf8 {[%emt 0:03:18]} 19. Rxf8+ {[%emt 0:00:24]} Kxf8 {[%emt 0:00:05]} 20. h3 {[%emt 0:01:11]} Nf6 {[%emt 0:00:34]} 21. Rf1 {[%emt 0:00:08]} Ke7 {[%emt 0:00:57]} 22. Nf5+ {[%emt 0:00:32]} Bxf5 {[%emt 0:00:15]} 23. Rxf5 {[%emt 0:00:05]} Ke6 {[%emt 0:00:38]} 24. g4 {[%emt 0:03:57]} a5 {[%emt 0:02:12]} 25. a4 {[%emt 0:03:43]} h5 {[%emt 0:02:35]} 26. Rg5 {[%emt 0:07:57]} hxg4 {[%emt 0:01:15]} 27. Rxg7 {[%emt 0:00:25]} gxh3 {[%emt 0:00:11]} 28. Kh2 {[%emt 0:00:09]} Rh8 {[%emt 0:00:52]} 29. Rg3 {[%emt 0:04:41]} Kf5 {[%emt 0:02:14]} 30. Rf3+ {[%emt 0:00:06]} Ke6 {[%emt 0:01:08]} 31. Rg3 {[%emt 0:00:18]} Rh6 {[%emt 0:02:22]} 32. e4 {[%emt 0:00:59]} Rh4 {[%emt 0:01:20]} 33. Rxh3 {[%emt 0:00:22]} Rf4 {[%emt 0:00:21]} 34. Kg3 {[%emt 0:01:26]} Nxe4+ {[%emt 0:00:18]} 35. Nxe4 {[%emt 0:00:06]} Rxe4 {[%emt 0:00:03]} 36. Kf3 {[%emt 0:04:05]} Rf4+ {[%emt 0:02:18]} 37. Ke3 {[%emt 0:00:08]} Rg4 {[%emt 0:00:45]} 38. Kf3 {[%emt 0:03:37]} Kf5 {[%emt 0:01:29]} 39. Rh8 {[%emt 0:01:30]} e4+ {[%emt 0:01:29]} 40. Kf2 {[%emt 0:00:06]} Rg6 {[%emt 0:01:44]} 41. Re8 {[%emt 0:38:09]} Kf4 {[%emt 0:31:01]} 42. Re7 {[%emt 0:00:43]} e3+ {[%emt 0:00:53]} 43. Ke2 {[%emt 0:00:19]} Rg2+ {[%emt 0:00:17]} 44. Kd3 {[%emt 0:00:06]} Rd2+ {[%emt 0:00:26]} 0-1

[Event "FIDE WSTC Open 50 2025"]
[Site "Prague"]
[Date "2025.02.18"]
[Round "2.21"]
[White "Bryson, Douglas M"]
[Black "Ftacnik, Lubomir"]
[Result "1/2-1/2"]
[Annotator "ChessBase"]
[ECO "B81"]
[WhiteElo "2295"]
[BlackElo "2438"]
[PlyCount "65"]
[EventDate "2025.02.17"]
[EventType "team-tourn"]
[EventCountry "CZE"]
[SourceTitle "playchess.com"]
[Source "ChessBase"]
[SourceQuality "1"]
[TimeControl "40/5400+30:1800+30"]

1. e4 {[%emt 0:00:07]} c5 {[%emt 0:00:09]} 2. Nf3 {[%emt 0:00:18]} d6 {[%emt 0:00:09]} 3. d4 {[%emt 0:00:25]} cxd4 {[%emt 0:00:09]} 4. Nxd4 {[%emt 0:00:15]} Nf6 {[%emt 0:00:10]} 5. Nc3 {[%emt 0:00:09]} e6 {[%emt 0:00:13]} 6. g4 {[%emt 0:01:08]} h6 {[%emt 0:00:21]} 7. h4 {[%emt 0:00:55]} Nc6 {[%emt 0:01:00]} 8. Rg1 {[%emt 0:01:12]} d5 {[%emt 0:00:43]} 9. exd5 {[%emt 0:03:02]} Nxd5 {[%emt 0:00:11]} 10. Nxd5 {[%emt 0:03:02]} exd5 {[%emt 0:00:32]} 11. Bb5 {[%emt 0:09:34]} Bd7 {[%emt 0:01:09]} 12. Qe2+ {[%emt 0:05:30]} Be7 {[%emt 0:19:05]} 13. Bxc6 {[%emt 0:31:41]} bxc6 {[%emt 0:00:18]} 14. Nf5 {[%emt 0:00:22]} Bxf5 {[%emt 0:10:57]} 15. gxf5 {[%emt 0:00:04]} Kf8 {[%emt 0:01:44]} 16. Be3 {[%emt 0:07:04]} Qa5+ {[%emt 0:06:53]} 17. Bd2 {[%emt 0:06:34]} Bb4 {[%emt 0:01:55]} 18. O-O-O {[%emt 0:00:59]} Bxd2+ {[%emt 0:01:06]} 19. Qxd2 {[%emt 0:00:15]} Qxd2+ {[%emt 0:06:32]} 20. Rxd2 {[%emt 0:01:01]} Ke7 {[%emt 0:02:20]} 21. Rxg7 {[%emt 0:01:05]} Kf6 {[%emt 0:02:57]} 22. Rg3 {[%emt 0:02:23]} Rhe8 {[%emt 0:06:45]} 23. Rc3 {[%emt 0:02:55]} Rac8 {[%emt 0:12:51]} 24. Kd1 {[%emt 0:00:29]} Kxf5 {[%emt 0:01:39]} 25. Rd4 {[%emt 0:02:09]} Ke6 {[%emt 0:04:55]} 26. Ke2 {[%emt 0:06:33]} Kd6+ {[%emt 0:02:48]} 27. Kf3 {[%emt 0:00:57]} f5 {[%emt 0:03:37]} 28. Rf4 {[%emt 0:05:04]} Re5 {[%emt 0:04:45]} 29. Ra3 {[%emt 0:00:31]} Rc7 {[%emt 0:00:09]} 30. Rfa4 {[%emt 0:01:47]} Ree7 {[%emt 0:01:56]} 31. Rf4 {[%emt 0:00:16]} Re5 {[%emt 0:00:11]} 32. Rfa4 {[%emt 0:00:05]} Ree7 {[%emt 0:00:04]} 33. Rf4 1/2-1/2

[Event "FIDE WSTC Open 50 2025"]
[Site "Prague"]
[Date "2025.02.18"]
[Round "2.22"]
[White "Mrva, Martin"]
[Black "Mitchell, Martin"]
[Result "1-0"]
[Annotator "ChessBase"]
[ECO "B08"]
[WhiteElo "2394"]
[BlackElo "2143"]
[PlyCount "119"]
[EventDate "2025.02.17"]
[EventType "team-tourn"]
[EventCountry "CZE"]
[SourceTitle "playchess.com"]
[Source "ChessBase"]
[SourceQuality "1"]
[TimeControl "40/5400+30:1800+30"]

1. e4 {[%emt 0:00:04]} d6 {[%emt 0:00:10]} 2. d4 {[%emt 0:00:09]} Nf6 {[%emt 0:00:05]} 3. Nc3 {[%emt 0:00:08]} g6 {[%emt 0:00:08]} 4. Nf3 {[%emt 0:00:18]} Bg7 {[%emt 0:03:29]} 5. Be2 {[%emt 0:00:28]} O-O {[%emt 0:00:14]} 6. O-O {[%emt 0:00:06]} Nc6 {[%emt 0:00:11]} 7. d5 {[%emt 0:00:26]} Nb8 {[%emt 0:00:11]} 8. Be3 {[%emt 0:00:19]} c6 {[%emt 0:03:39]} 9. a4 {[%emt 0:01:26]} cxd5 {[%emt 0:11:23]} 10. exd5 {[%emt 0:00:19]} Bg4 {[%emt 0:00:25]} 11. a5 {[%emt 0:02:31]} Na6 {[%emt 0:09:31]} 12. h3 {[%emt 0:07:43]} Bf5 {[%emt 0:06:20]} 13. Nd4 {[%emt 0:07:23]} Bd7 {[%emt 0:05:33]} 14. f4 {[%emt 0:21:00]} Nc5 {[%emt 0:02:10]} 15. Bf3 {[%emt 0:00:22]} Rc8 {[%emt 0:04:37]} 16. Ra3 {[%emt 0:03:18]} Qc7 {[%emt 0:08:48]} 17. Qd2 {[%emt 0:03:46]} Bf5 {[%emt 0:02:29]} 18. g4 {[%emt 0:01:19]} Bd7 {[%emt 0:03:09]} 19. f5 {[%emt 0:00:27]} gxf5 {[%emt 0:04:40]} 20. gxf5 {[%emt 0:07:17]} Kh8 {[%emt 0:00:33]} 21. Kh1 {[%emt 0:00:11]} Rg8 {[%emt 0:02:25]} 22. Rg1 {[%emt 0:00:27]} Ne8 {[%emt 0:02:04]} 23. Raa1 {[%emt 0:00:50]} e5 {[%emt 0:04:49]} 24. fxe6 {[%emt 0:11:22]} fxe6 {[%emt 0:00:11]} 25. dxe6 {[%emt 0:14:09]} Nxe6 {[%emt 0:01:28]} 26. Nd5 {[%emt 0:00:21]} Qd8 {[%emt 0:00:34]} 27. Nf5 {[%emt 0:03:47]} Bc6 {[%emt 0:05:15]} 28. Raf1 {[%emt 0:01:05]} Rf8 {[%emt 0:04:14]} 29. Bg2 {[%emt 0:04:45]} Rf7 {[%emt 0:04:21]} 30. c4 {[%emt 0:04:04]} a6 {[%emt 0:01:16]} 31. Qe2 {[%emt 0:00:38]} Be5 {[%emt 0:02:10]} 32. Qh5 {[%emt 0:00:45]} Qd7 {[%emt 0:06:40]} 33. Nb6 {[%emt 0:02:28]} Qc7 {[%emt 0:00:11]} 34. Nxc8 {[%emt 0:00:13]} N8g7 {[%emt 0:01:39]} 35. Nxg7 {[%emt 0:00:25]} Bxg2+ {[%emt 0:00:09]} 36. Kxg2 {[%emt 0:00:31]} Qc6+ {[%emt 0:00:35]} 37. Rf3 {[%emt 0:00:25]} Rxg7+ {[%emt 0:00:23]} 38. Kh1 {[%emt 0:00:15]} Qxc8 {[%emt 0:00:34]} 39. Rxg7 {[%emt 0:00:20]} Bxg7 {[%emt 0:01:06]} 40. Bh6 {[%emt 0:01:06]} Bxb2 {[%emt 0:01:21]} 41. Qd5 {[%emt 0:33:06]} Bg7 {[%emt 0:08:45]} 42. Bxg7+ {[%emt 0:00:00]} Kxg7 {[%emt 0:01:12]} 43. Qxd6 {[%emt 0:00:00]} h6 {[%emt 0:03:47]} 44. Qe7+ {[%emt 0:00:00]} Kg8 {[%emt 0:02:00]} 45. Qf7+ {[%emt 0:00:00]} Kh8 {[%emt 0:00:04]} 46. Qg6 {[%emt 0:00:00]} Qxc4 {[%emt 0:01:53]} 47. Qxh6+ {[%emt 0:00:00]} Kg8 {[%emt 0:00:04]} 48. Qg6+ {[%emt 0:00:00]} Ng7 {[%emt 0:00:42]} 49. Qg5 {[%emt 0:00:00]} Kh7 {[%emt 0:02:15]} 50. Rg3 {[%emt 0:00:00]} Qf1+ {[%emt 0:01:02]} 51. Kh2 {[%emt 0:00:00]} Qf2+ {[%emt 0:00:34]} 52. Rg2 {[%emt 0:00:00]} Qd4 {[%emt 0:00:21]} 53. Re2 {[%emt 0:00:00]} Kh8 {[%emt 0:03:45]} 54. Qe5 {[%emt 0:00:00]} Qd7 {[%emt 0:00:48]} 55. Rg2 {[%emt 0:00:00]} Kh7 {[%emt 0:00:18]} 56. Rxg7+ {[%emt 0:00:00]} Qxg7 {[%emt 0:00:08]} 57. Qxg7+ {[%emt 0:00:00]} Kxg7 {[%emt 0:00:03]} 58. Kg3 {[%emt 0:00:00]} Kg6 {[%emt 0:00:58]} 59. Kf4 {[%emt 0:00:00]} Kh5 {[%emt 0:00:07]} 60. Ke5 {[%emt 0:00:00]} 1-0

[Event "FIDE WSTC Open 50 2025"]
[Site "Prague"]
[Date "2025.02.18"]
[Round "2.23"]
[White "Minnican, Alan"]
[Black "Lipka, Juraj"]
[Result "0-1"]
[Annotator "ChessBase"]
[ECO "D02"]
[WhiteElo "2039"]
[BlackElo "2348"]
[PlyCount "76"]
[EventDate "2025.02.17"]
[EventType "team-tourn"]
[EventCountry "CZE"]
[SourceTitle "playchess.com"]
[Source "ChessBase"]
[SourceQuality "1"]
[TimeControl "40/5400+30:1800+30"]

1. d4 {[%emt 0:00:18]} d5 {[%emt 0:00:10]} 2. Nf3 {[%emt 0:00:17]} Nf6 {[%emt 0:00:19]} 3. Bf4 {[%emt 0:00:13]} c5 {[%emt 0:00:48]} 4. e3 {[%emt 0:00:15]} Nc6 {[%emt 0:00:19]} 5. Nbd2 {[%emt 0:00:25]} Nh5 {[%emt 0:01:49]} 6. Be5 {[%emt 0:05:59]} f6 {[%emt 0:01:06]} 7. Bg3 {[%emt 0:04:01]} g6 {[%emt 0:02:25]} 8. c3 {[%emt 0:07:20]} cxd4 {[%emt 0:04:16]} 9. cxd4 {[%emt 0:01:41]} Bg7 {[%emt 0:10:52]} 10. a3 {[%emt 0:04:10]} O-O {[%emt 0:12:28]} 11. b4 {[%emt 0:09:07]} a6 {[%emt 0:07:22]} 12. Be2 {[%emt 0:10:17]} e5 {[%emt 0:15:29]} 13. Nb3 {[%emt 0:02:32]} Nxg3 {[%emt 0:03:54]} 14. hxg3 {[%emt 0:00:08]} e4 {[%emt 0:03:37]} 15. Nfd2 {[%emt 0:02:11]} f5 {[%emt 0:01:47]} 16. Nc5 {[%emt 0:11:15]} Ne7 {[%emt 0:04:01]} 17. Qb3 {[%emt 0:02:46]} b6 {[%emt 0:02:00]} 18. Na4 {[%emt 0:00:34]} Qd6 {[%emt 0:02:37]} 19. Nc3 {[%emt 0:03:17]} Be6 {[%emt 0:01:34]} 20. Rc1 {[%emt 0:17:31]} g5 {[%emt 0:01:07]} 21. Qd1 {[%emt 0:07:15]} h6 {[%emt 0:06:11]} 22. Nf1 {[%emt 0:03:31]} Rfc8 {[%emt 0:03:36]} 23. f4 {[%emt 0:01:47]} exf3 {[%emt 0:01:17]} 24. gxf3 {[%emt 0:00:14]} f4 {[%emt 0:00:41]} 25. gxf4 {[%emt 0:03:20]} gxf4 {[%emt 0:00:05]} 26. e4 {[%emt 0:01:40]} dxe4 {[%emt 0:05:22]} 27. Nxe4 {[%emt 0:00:10]} Qxd4 {[%emt 0:03:34]} 28. Rxc8+ {[%emt 0:00:42]} Rxc8 {[%emt 0:00:09]} 29. Qxd4 {[%emt 0:00:13]} Bxd4 {[%emt 0:00:20]} 30. Rxh6 {[%emt 0:00:35]} Bb3 {[%emt 0:01:07]} 31. Rd6 {[%emt 0:01:28]} Nf5 {[%emt 0:01:12]} 32. Rd7 {[%emt 0:00:20]} Be6 {[%emt 0:02:20]} 33. Ra7 {[%emt 0:00:31]} Ne3 {[%emt 0:00:30]} 34. Nxe3 {[%emt 0:00:34]} fxe3 {[%emt 0:01:24]} 35. Bd3 {[%emt 0:00:44]} Rc1+ {[%emt 0:01:08]} 36. Ke2 {[%emt 0:00:06]} Bb3 {[%emt 0:00:52]} 37. Ra8+ {[%emt 0:00:53]} Kg7 {[%emt 0:00:15]} 38. Ng5 {[%emt 0:00:35]} Bd1+ {[%emt 0:00:12]} 0-1